fUSD/lending_fUSD_20250923
["ID","MTS","AMOUNT","RATE_DAILY","PERIOD"]
[387140031,1758588759107,-760.3,0.00024383,2]
[387140032,1758588759120,-427.52,0.00024383,2]
[387140033,1758588759130,-450.15,0.00024383,2]
[387140034,1758588759139,-500.42,0.00024383,2]
[387140035,1758588759148,-535.91,0.00024383,2]
[387140036,1758588759158,-440.64,0.00024383,2]
[387140037,1758588759168,-839.22,0.00024383,2]
[387140038,1758588759177,-1017.53,0.00024383,2]
[387140039,1758588759187,-317.06324839,0.00024383,2]
[387140040,1758588759197,-9183.84,0.00024383,2]
[387140041,1758588759207,-400.0,0.00024383,2]
[387140042,1758588759216,-451.23,0.00024383,2]
[387140043,1758588759226,-894.16,0.00024383,2]
[387140044,1758588759235,-683.2,0.00024383,2]
[387140045,1758588759244,-1123.88,0.00024383,2]
[387140046,1758588759254,-406.45,0.00024383,2]
[387140047,1758588759263,-1005.19,0.00024383,2]
[387140048,1758588759272,-808.52,0.00024383,2]
[387140049,1758588759281,-1110.73,0.00024383,2]
[387140050,1758588759291,-400.0,0.00024383,2]
[387140051,1758588759300,-1205.76,0.00024383,2]
[387140052,1758588759309,-484.35247954,0.00024383,2]
[387140053,1758588759318,-741.22,0.00024383,2]
[387140054,1758588759327,-51273.27,0.000244,7]
[387140055,1758588759337,-200.0,0.0002441,7]
[387140056,1758588759348,-202.0,0.00024434,2]
[387140057,1758588759358,-168.0,0.00024443,2]
[387140058,1758588759369,-202.0,0.00024461,2]
[387140059,1758588759379,-400.0,0.0002447,2]
[387140060,1758588759389,-700.0,0.0002447,2]
[387140061,1758588759398,-168.0,0.0002449,2]
[387140062,1758588759408,-2041.0,0.00024495,2]
[387140063,1758588759417,-786.0,0.00024495,2]
[387140064,1758588759428,-3394.0,0.00024495,2]
[387140065,1758588759439,-1262.0,0.00024495,2]
[387140066,1758588759449,-1304.0,0.00024495,2]
[387140067,1758588759460,-602.0,0.00024495,2]
[387140068,1758588759469,-1582.0,0.00024495,2]
[387140069,1758588759479,-569.0,0.00024495,2]
[387140070,1758588759488,-813.0,0.00024495,2]
[387140071,1758588759498,-727.0,0.00024495,2]
[387140072,1758588759507,-4176.0,0.00024495,2]
[387140073,1758588759516,-18891.0,0.00024495,2]
[387140074,1758588759525,-500.0,0.000245,60]
[387140075,1758588759534,-516.58280827,0.000245,7]
[387140076,1758588759543,-200.0,0.0002451,7]
[387140077,1758588759552,-202.0,0.00024515,2]
[387140078,1758588759561,-3292.0,0.00024521,2]
[387140079,1758588759570,-2500.0,0.00024525,7]
[387140080,1758588759579,-2500.0,0.00024534,7]
[387140081,1758588759589,-2000.0,0.00024535,2]
[387140082,1758588759598,-2000.0,0.00024535,2]
[387140083,1758588759607,-2001.9241,0.00024535,2]
[387140084,1758588759616,-2500.0,0.00024543,7]
[387140085,1758588759625,-2500.0,0.00024551,7]
[387140086,1758588759634,-150.0,0.00024558,2]
[387140087,1758588759644,-2500.0,0.0002456,7]
[387140088,1758588759653,-157.41684955,0.00024568,2]
[387140089,1758588759662,-2500.0,0.00024569,7]
[387140090,1758588759672,-350.0,0.00024571,2]
[387140091,1758588759681,-2500.0,0.00024578,7]
[387140092,1758588759690,-2500.0,0.00024587,7]
[387140093,1758588759700,-2500.0,0.00024595,7]
[387140094,1758588759709,-2500.0,0.00024604,7]
[387140095,1758588759719,-150.0,0.00024609,2]
[387140096,1758588759728,-150.0,0.00024609,2]
[387140097,1758588759737,-150.0,0.00024609,2]
[387140098,1758588759746,-200.0,0.0002461,7]
[387140099,1758588759755,-2500.0,0.00024613,7]
[387140100,1758588759764,-677.0,0.00024621,2]
[387140101,1758588759774,-2500.0,0.00024622,7]
[387140102,1758588759783,-2500.0,0.00024631,7]
[387140103,1758588759792,-5800.0,0.00024632,2]
[387140104,1758588759802,-2500.0,0.00024639,7]
[387140105,1758588759811,-5800.0,0.0002464,2]
[387140106,1758588759820,-5800.0,0.0002464,2]
[387140107,1758588759830,-2500.0,0.00024648,7]
[387140108,1758588759839,-5800.0,0.00024649,2]
[387140109,1758588759849,-5800.0,0.00024649,2]
[387140110,1758588759858,-587.41621935,0.0002465,2]
[387140111,1758588759866,-307.8244184,0.0002465,2]
[387140112,1758588759875,-307.8244184,0.0002465,2]
[387140113,1758588759884,-366.86399125,0.00024651,2]
[387140114,1758588759894,-1741.0,0.00024651,2]
[387140115,1758588759904,-496.0,0.00024651,2]
[387140116,1758588759913,-500.0,0.00024651,2]
[387140117,1758588759922,-539.0,0.00024651,2]
[387140118,1758588759931,-400.0,0.00024651,2]
[387140119,1758588759941,-553.8,0.00024651,2]
[387140120,1758588759950,-739.8,0.00024651,2]
[387140121,1758588759959,-631.13,0.00024651,2]
[387140122,1758588759969,-400.0,0.00024651,2]
[387140123,1758588759978,-400.0,0.00024651,2]
[387140124,1758588759987,-455.09,0.00024651,2]
[387140125,1758588759996,-400.0,0.00024654,2]
[387140126,1758588760005,-400.0,0.00024655,2]
[387140127,1758588760014,-400.0,0.00024655,2]
[387140128,1758588760024,-417.58,0.00024655,2]
[387140129,1758588760033,-400.0,0.00024655,2]
[387140130,1758588760042,-400.0,0.00024655,2]
[387140131,1758588760051,-729.73,0.00024655,2]
[387140132,1758588760060,-1262.42,0.00024655,2]
[387140133,1758588760069,-402.51,0.00024655,2]
[387140134,1758588760078,-796.01,0.00024655,2]
[387140135,1758588760089,-431.35,0.00024655,2]
[387140136,1758588760098,-2335.81,0.00024655,2]
[387140137,1758588760107,-1029.46,0.00024655,2]
[387140138,1758588760120,-465.65,0.00024655,2]
[387140139,1758588760128,-400.0,0.00024655,2]
[387140140,1758588760138,-1832.67,0.00024655,2]
[387140141,1758588760147,-1616.25,0.00024655,2]
[387140142,1758588760155,-400.0,0.00024655,2]
[387140143,1758588760164,-400.0,0.00024655,2]
[387140144,1758588760174,-836.01,0.00024655,2]
[387140145,1758588760183,-467.04407474,0.00024655,2]
[387140146,1758588760192,-205.74,0.00024655,2]
[387140147,1758588760202,-1061.09,0.00024655,2]
[387140148,1758588760212,-522.0,0.00024655,2]
[387140149,1758588760221,-400.0,0.00024655,2]
[387140150,1758588760231,-3384.62,0.00024655,2]
[387140151,1758588760240,-2060.76,0.00024655,2]
[387140152,1758588760250,-530.11,0.00024655,2]
[387140153,1758588760259,-530.0,0.00024655,2]
[387140154,1758588760268,-922.13,0.00024655,2]
[387140155,1758588760280,-400.0,0.00024655,2]
[387140156,1758588760290,-754.65,0.00024655,2]
[387140157,1758588760301,-508.94,0.00024655,2]
[387140158,1758588760310,-488.38,0.00024655,2]
[387140159,1758588760319,-1169.65,0.00024655,2]
[387140160,1758588760327,-400.0,0.00024656,2]
[387140161,1758588760337,-400.0,0.00024656,2]
[387140162,1758588760346,-400.0,0.00024656,2]
[387140163,1758588760355,-400.0,0.00024656,2]
[387140164,1758588760364,-674.13,0.00024656,2]
[387140165,1758588760373,-490.65,0.00024656,2]
[387140166,1758588760383,-410.63,0.00024656,2]
[387140167,1758588760391,-750.91,0.00024656,2]
[387140168,1758588760400,-554.46,0.00024656,2]
[387140169,1758588760409,-544.47,0.00024656,2]
[387140170,1758588760418,-859.26,0.00024656,2]
[387140171,1758588760426,-188.7,0.00024656,2]
[387140172,1758588760435,-660.35,0.00024656,2]
[387140173,1758588760444,-410.37,0.00024656,2]
[387140174,1758588760453,-1016.77,0.00024656,2]
[387140175,1758588760463,-400.0,0.00024656,2]
[387140176,1758588760473,-484.13,0.00024656,2]
[387140177,1758588760482,-682.51,0.00024656,2]
[387140178,1758588760491,-400.0,0.00024656,2]
[387140179,1758588760500,-588.84,0.00024656,2]
[387140180,1758588760509,-527.41,0.00024656,2]
[387140181,1758588760519,-769.14,0.00024656,2]
[387140182,1758588760527,-505.38,0.00024656,2]
[387140183,1758588760537,-450.01,0.00024656,2]
[387140184,1758588760546,-495.05,0.00024656,2]
[387140185,1758588760555,-593.36,0.00024656,2]
[387140186,1758588760565,-445.15,0.00024656,2]
[387140187,1758588760574,-769.03,0.00024656,2]
[387140188,1758588760583,-537.23,0.00024656,2]
[387140189,1758588760593,-400.0,0.00024656,2]
[387140190,1758588760602,-1440.81,0.00024656,2]
[387140191,1758588760611,-2249.616654,0.00024656,2]
[387140192,1758588760620,-501.01,0.00024656,2]
[387140193,1758588760630,-493.6,0.00024656,2]
[387140194,1758588760639,-400.0,0.00024656,2]
[387140195,1758588760649,-969.65,0.00024656,2]
[387140196,1758588760658,-433.42,0.00024656,2]
[387140197,1758588760667,-577.66,0.00024656,2]
[387140198,1758588760677,-803.42,0.00024656,2]
[387140199,1758588760687,-651.06,0.00024656,2]
[387140200,1758588760697,-414.87,0.00024656,2]
[387140201,1758588760707,-602.08,0.00024656,2]
[387140202,1758588760718,-457.7,0.00024656,2]
[387140203,1758588760727,-400.0,0.00024656,2]
[387140204,1758588760737,-697.68,0.00024656,2]
[387140205,1758588760747,-1169.47,0.00024656,2]
[387140206,1758588760756,-400.0,0.00024656,2]
[387140207,1758588760765,-514.36,0.00024656,2]
[387140208,1758588760775,-440.26,0.00024656,2]
[387140209,1758588760784,-593.88,0.00024656,2]
[387140210,1758588760794,-1060.97,0.00024656,2]
[387140211,1758588760802,-743.55,0.00024656,2]
[387140212,1758588760810,-620.51,0.00024656,2]
[387140213,1758588760820,-400.0,0.00024656,2]
[387140214,1758588760828,-695.32,0.00024656,2]
[387140215,1758588760838,-447.81,0.00024656,2]
[387140216,1758588760849,-909.99,0.00024656,2]
[387140217,1758588760859,-400.0,0.00024656,2]
[387140218,1758588760868,-609.54,0.00024656,2]
[387140219,1758588760877,-400.0,0.00024656,2]
[387140220,1758588760887,-503.16,0.00024656,2]
[387140221,1758588760896,-652.42,0.00024656,2]
[387140222,1758588760906,-1926.15,0.00024656,2]
[387140223,1758588760915,-808.98,0.00024656,2]
[387140224,1758588760925,-997.93,0.00024656,2]
[387140225,1758588760937,-2763.9,0.00024656,2]
[387140226,1758588760947,-822.69,0.00024656,2]
[387140227,1758588760956,-1231.62,0.00024656,2]
[387140228,1758588760966,-435.88,0.00024656,2]
[387140229,1758588760975,-1082.02,0.00024656,2]
[387140230,1758588760986,-703.54,0.00024656,2]
[387140231,1758588760998,-471.61,0.00024656,2]
[387140232,1758588761009,-698.95,0.00024656,2]
[387140233,1758588761020,-422.43,0.00024656,2]
[387140234,1758588761031,-665.52,0.00024656,2]
[387140235,1758588761041,-1517.07,0.00024656,2]
[387140236,1758588761050,-1290.57,0.00024656,2]
[387140237,1758588761061,-599.8,0.00024656,2]
[387140238,1758588761071,-864.51,0.00024656,2]
[387140239,1758588761082,-700.22,0.00024656,2]
[387140240,1758588761093,-578.19,0.00024656,2]
[387140241,1758588761104,-529.42,0.00024656,2]
[387140242,1758588761117,-1270.12,0.00024656,2]
[387140243,1758588761127,-790.42,0.00024656,2]
[387140244,1758588761136,-546.07,0.00024656,2]
[387140245,1758588761147,-796.17,0.00024656,2]
[387140246,1758588761159,-1797.38,0.00024656,2]
[387140247,1758588761169,-1179.29,0.00024656,2]
[387140248,1758588761179,-1067.68,0.00024656,2]
[387140249,1758588761190,-685.94,0.00024656,2]
[387140250,1758588761199,-400.0,0.00024656,2]
[387140251,1758588761210,-400.0,0.00024656,2]
[387140252,1758588761220,-4410.79,0.00024656,2]
[387140253,1758588761229,-304.83,0.00024656,2]
[387140254,1758588761238,-635.32,0.00024656,2]
[387140255,1758588761248,-825.39,0.00024656,2]
[387140256,1758588761256,-1159.17,0.00024656,2]
[387140257,1758588761266,-3621.17,0.00024656,2]
[387140258,1758588761275,-536.01,0.00024656,2]
[387140259,1758588761284,-1555.92,0.00024656,2]
[387140260,1758588761293,-685.82,0.00024656,2]
[387140261,1758588761302,-533.54,0.00024656,2]
[387140262,1758588761502,-3199.7,0.00024656,2]
[387140263,1758588761511,-400.0,0.00024656,2]
[387140264,1758588761521,-5083.46,0.00024656,2]
[387140265,1758588761530,-1688.59,0.00024656,2]
[387140266,1758588761539,-532.7,0.00024656,2]
[387140267,1758588761549,-726.03,0.00024656,2]
[387140268,1758588761558,-1692.11,0.00024656,2]
[387140269,1758588761567,-633.11,0.00024656,2]
[387140270,1758588761577,-411.61,0.00024656,2]
[387140271,1758588761586,-648.3,0.00024656,2]
[387140272,1758588761595,-857.03,0.00024656,2]
[387140273,1758588761605,-722.01,0.00024656,2]
[387140274,1758588761615,-1108.24,0.00024656,2]
[387140275,1758588761625,-464.86,0.00024656,2]
[387140276,1758588761634,-2367.09,0.00024656,2]
[387140277,1758588761643,-1636.84,0.00024656,2]
[387140278,1758588761652,-2136.91,0.00024656,2]
[387140279,1758588761661,-555.5,0.00024656,2]
[387140280,1758588761671,-914.0,0.00024656,2]
[387140281,1758588761680,-887.03,0.00024656,2]
[387140282,1758588761689,-4785.63,0.00024656,2]
[387140283,1758588761698,-1767.45,0.00024656,2]
[387140284,1758588761707,-1514.68,0.00024656,2]
[387140285,1758588761717,-553.9,0.00024656,2]
[387140286,1758588761726,-644.46,0.00024656,2]
[387140287,1758588761736,-434.59,0.00024656,2]
[387140288,1758588761745,-1093.45,0.00024656,2]
[387140289,1758588761755,-2259.45,0.00024656,2]
[387140290,1758588761764,-1283.49,0.00024656,2]
[387140291,1758588761773,-579.07,0.00024656,2]
[387140292,1758588761783,-1392.04,0.00024656,2]
[387140293,1758588761792,-586.63,0.00024656,2]
[387140294,1758588761801,-852.34,0.00024656,2]
[387140295,1758588761812,-400.0,0.00024656,2]
[387140296,1758588761822,-602.29,0.00024656,2]
[387140297,1758588761831,-2120.46,0.00024656,2]
[387140298,1758588761840,-374.99,0.00024656,2]
[387140299,1758588761850,-730.17,0.00024656,2]
[387140300,1758588761860,-713.11,0.00024656,2]
[387140301,1758588761869,-824.24,0.00024656,2]
[387140302,1758588761879,-2178.93,0.00024656,2]
[387140303,1758588761888,-563.68,0.00024656,2]
[387140304,1758588761897,-185.31957505,0.00024656,2]
[387140305,1758588761906,-624.27,0.00024656,2]
[387140306,1758588761915,-1279.8,0.00024656,2]
[387140307,1758588761924,-4500.0,0.00024656,2]
[387140308,1758588761934,-2500.0,0.00024657,7]
[387140309,1758588761943,-5800.0,0.00024657,2]
[387140310,1758588761952,-282.90899511,0.00024657,2]
[387140311,1758588761962,-400.0,0.00024657,2]
[387140312,1758588761971,-400.0,0.00024657,2]
[387140313,1758588761980,-400.0,0.00024657,2]
[387140314,1758588761989,-316.71,0.00024657,2]
[387140315,1758588761999,-269.1,0.00024657,2]
[387140316,1758588762008,-487.46,0.00024657,2]
[387140317,1758588762018,-555.17,0.00024657,2]
[387140318,1758588762027,-491.16,0.00024657,2]
[387140319,1758588762036,-416.06,0.00024657,2]
[387140320,1758588762045,-439.92,0.00024657,2]
[387140321,1758588762054,-428.44,0.00024657,2]
[387140322,1758588762063,-754.63,0.00024657,2]
[387140323,1758588762073,-403.38,0.00024657,2]
[387140324,1758588762082,-917.82,0.00024657,2]
[387140325,1758588762091,-400.0,0.00024657,2]
[387140326,1758588762100,-504.07,0.00024657,2]
[387140327,1758588762110,-535.33,0.00024657,2]
[387140328,1758588762122,-414.45,0.00024657,2]
[387140329,1758588762131,-597.93,0.00024657,2]
[387140330,1758588762140,-599.79,0.00024657,2]
[387140331,1758588762149,-512.84,0.00024657,2]
[387140332,1758588762159,-830.32,0.00024657,2]
[387140333,1758588762167,-400.0,0.00024657,2]
[387140334,1758588762177,-400.0,0.00024657,2]
[387140335,1758588762185,-877.74,0.00024657,2]
[387140336,1758588762195,-454.04,0.00024657,2]
[387140337,1758588762205,-944.31,0.00024657,2]
[387140338,1758588762215,-266.71,0.00024657,2]
[387140339,1758588762224,-866.7,0.00024657,2]
[387140340,1758588762234,-983.28,0.00024657,2]
[387140341,1758588762245,-400.0,0.00024657,2]
[387140342,1758588762256,-722.94,0.00024657,2]
[387140343,1758588762266,-400.0,0.00024657,2]
[387140344,1758588762276,-542.91,0.00024657,2]
[387140345,1758588762286,-531.68,0.00024657,2]
[387140346,1758588762296,-559.02,0.00024657,2]
[387140347,1758588762308,-5800.0,0.00024657,2]
[387140348,1758588762317,-682.63,0.00024657,2]
[387140349,1758588762326,-461.64,0.00024657,2]
[387140350,1758588762336,-300.0,0.00024657,2]
[387140351,1758588762345,-300.0,0.00024657,2]
[387140352,1758588762354,-300.0,0.00024657,2]
[387140353,1758588762363,-300.0,0.00024657,2]
[387140354,1758588762373,-300.0,0.00024657,2]
[387140355,1758588762382,-400.0,0.00024657,2]
[387140356,1758588762392,-671.51,0.00024657,2]
[387140357,1758588762402,-404.72,0.00024657,2]
[387140358,1758588762412,-607.71,0.00024657,2]
[387140359,1758588762421,-400.0,0.00024657,2]
[387140360,1758588762431,-421.51,0.00024657,2]
[387140361,1758588762440,-965.94,0.00024657,2]
[387140362,1758588762450,-596.18,0.00024657,2]
[387140363,1758588762460,-417.6,0.00024657,2]
[387140364,1758588762469,-779.83,0.00024657,2]
[387140365,1758588762478,-400.0,0.00024657,2]
[387140366,1758588762487,-400.0,0.00024657,2]
[387140367,1758588762497,-720.23,0.00024657,2]
[387140368,1758588762506,-432.08,0.00024657,2]
[387140369,1758588762515,-926.5,0.00024657,2]
[387140370,1758588762524,-453.42,0.00024657,2]
[387140371,1758588762533,-400.0,0.00024657,2]
[387140372,1758588762542,-499.27,0.00024657,2]
[387140373,1758588762552,-415.36,0.00024657,2]
[387140374,1758588762562,-400.0,0.00024657,2]
[387140375,1758588762571,-1064.17,0.00024657,2]
[387140376,1758588762580,-400.0,0.00024657,2]
[387140377,1758588762589,-428.67,0.00024657,2]
[387140378,1758588762599,-427.84,0.00024657,2]
[387140379,1758588762608,-400.0,0.00024657,2]
[387140380,1758588762617,-400.0,0.00024657,2]
[387140381,1758588762627,-715.39,0.00024657,2]
[387140382,1758588762636,-515.86,0.00024657,2]
[387140383,1758588762645,-400.0,0.00024657,2]
[387140384,1758588762654,-1049.53,0.00024657,2]
[387140385,1758588762663,-168.63,0.00024657,2]
[387140386,1758588762672,-669.85,0.00024657,2]
[387140387,1758588762682,-524.43,0.00024657,2]
[387140388,1758588762691,-480.73,0.00024657,2]
[387140389,1758588762700,-418.66,0.00024657,2]
[387140390,1758588762711,-400.0,0.00024657,2]
[387140391,1758588762720,-645.11,0.00024657,2]
[387140392,1758588762729,-3259.34,0.00024657,2]
[387140393,1758588762739,-819.08,0.00024657,2]
[387140394,1758588762748,-521.7,0.00024657,2]
[387140395,1758588762757,-527.41,0.00024657,2]
[387140396,1758588762766,-400.0,0.00024657,2]
[387140397,1758588762775,-707.11,0.00024657,2]
[387140398,1758588762784,-4823.52,0.00024657,2]
[387140399,1758588762794,-1811.93,0.00024657,2]
[387140400,1758588762803,-658.31,0.00024657,2]
[387140401,1758588762812,-1161.68,0.00024657,2]
[387140402,1758588762822,-751.69,0.00024657,2]
[387140403,1758588762833,-532.84,0.00024657,2]
[387140404,1758588762842,-760.3,0.00024657,2]
[387140405,1758588762852,-427.52,0.00024657,2]
[387140406,1758588762862,-450.15,0.00024657,2]
[387140407,1758588762873,-500.42,0.00024657,2]
[387140408,1758588762884,-535.91,0.00024657,2]
[387140409,1758588762893,-440.64,0.00024657,2]
[387140410,1758588762903,-839.22,0.00024657,2]
[387140411,1758588762912,-1017.53,0.00024657,2]
[387140412,1758588762922,-9183.84,0.00024657,2]
[387140413,1758588762931,-400.0,0.00024657,2]
[387140414,1758588762940,-451.23,0.00024657,2]
[387140415,1758588762949,-894.16,0.00024657,2]
[387140416,1758588762957,-683.2,0.00024657,2]
[387140417,1758588762967,-1123.88,0.00024657,2]
[387140418,1758588762976,-406.45,0.00024657,2]
[387140419,1758588762985,-1005.19,0.00024657,2]
[387140420,1758588762994,-808.52,0.00024657,2]
[387140421,1758588763003,-1110.73,0.00024657,2]
[387140422,1758588763012,-294.15945211,0.00024657,2]
[387140423,1758588763021,-1205.76,0.00024657,2]
[387140424,1758588763030,-741.22,0.00024657,2]
[387140425,1758588763039,-1000.0,0.00024658,3]
[387140426,1758588763048,-246.0,0.00024658,3]
[387140427,1758588763056,-1532.79,0.00024658,2]
[387140428,1758588763065,-151.0,0.00024658,7]
[387140429,1758588763074,-225.260359,0.00024658,7]
[387140430,1758588763083,-151.0,0.00024658,7]
[387140431,1758588763092,-151.0,0.00024658,7]
[387140432,1758588763103,-151.0,0.00024658,7]
[387140433,1758588763114,-151.0,0.00024658,7]
[387140434,1758588763123,-151.0,0.00024658,7]
[387140435,1758588763133,-250.157942,0.00024658,7]
[387140436,1758588763142,-1000.0,0.00024658,2]
[387140437,1758588763152,-1000.0,0.00024658,3]
[387140438,1758588763162,-1000.0,0.00024658,3]
[387140439,1758588763172,-1000.0,0.00024658,3]
[387140440,1758588763181,-1000.0,0.00024658,3]
[387140441,1758588763190,-1000.0,0.00024658,3]
[387140442,1758588763199,-1000.0,0.00024658,3]
[387140443,1758588763209,-1000.0,0.00024658,3]
[387140444,1758588763219,-356.0,0.00024658,3]
[387140445,1758588763228,-1000.0,0.00024658,3]
[387140446,1758588763237,-1000.0,0.00024658,3]
[387140447,1758588763246,-1000.0,0.00024658,3]
[387140448,1758588763255,-1000.0,0.00024658,3]
[387140449,1758588763264,-1000.0,0.00024658,3]
[387140450,1758588763273,-1000.0,0.00024658,3]
[387140451,1758588763282,-1000.0,0.00024658,3]
[387140452,1758588763291,-1000.0,0.00024658,3]
[387140453,1758588763301,-1000.0,0.00024658,3]
[387140454,1758588763310,-1000.0,0.00024658,3]
[387140455,1758588763319,-1000.0,0.00024658,3]
[387140456,1758588763329,-1000.0,0.00024658,3]
[387140457,1758588763339,-1000.0,0.00024658,3]
[387140458,1758588763350,-1000.0,0.00024658,3]
[387140459,1758588763359,-1000.0,0.00024658,3]
[387140460,1758588763370,-1000.0,0.00024658,3]
[387140461,1758588763380,-1000.0,0.00024658,3]
[387140462,1758588763389,-1000.0,0.00024658,3]
[387140463,1758588763400,-1000.0,0.00024658,3]
[387140464,1758588763411,-1000.0,0.00024658,3]
[387140465,1758588763422,-1040.0,0.00024658,3]
[387140466,1758588763432,-151.0,0.00024658,7]
[387140467,1758588763441,-151.0,0.00024658,7]
[387140468,1758588763450,-151.0,0.00024658,7]
[387140469,1758588763460,-151.0,0.00024658,7]
[387140470,1758588763470,-151.0,0.00024658,7]
[387140471,1758588763479,-151.0,0.00024658,7]
[387140472,1758588763490,-151.0,0.00024658,7]
[387140473,1758588763501,-151.0,0.00024658,7]
[387140474,1758588763511,-151.0,0.00024658,7]
[387140475,1758588763523,-186.191333,0.00024658,7]
[387140476,1758588763532,-214.0,0.00024658,2]
[387140477,1758588763543,-214.0,0.00024658,2]
[387140478,1758588763553,-214.0,0.00024658,2]
[387140479,1758588763563,-214.0,0.00024658,2]
[387140480,1758588763572,-214.0,0.00024658,2]
[387140481,1758588763582,-214.0,0.00024658,2]
[387140482,1758588763592,-214.0,0.00024658,2]
[387140483,1758588763601,-214.0,0.00024658,2]
[387140484,1758588763610,-214.0,0.00024658,2]
[387140485,1758588763620,-283.0,0.00024658,2]
[387140486,1758588763630,-283.0,0.00024658,2]
[387140487,1758588763640,-283.0,0.00024658,2]
[387140488,1758588763650,-283.0,0.00024658,2]
[387140489,1758588763661,-283.0,0.00024658,2]
[387140490,1758588763671,-283.0,0.00024658,2]
[387140491,1758588763680,-283.0,0.00024658,2]
[387140492,1758588763689,-283.0,0.00024658,2]
[387140493,1758588763700,-283.0,0.00024658,2]
[387140494,1758588763710,-283.0,0.00024658,2]
[387140495,1758588763719,-283.0,0.00024658,2]
[387140496,1758588763729,-283.0,0.00024658,2]
[387140497,1758588763738,-2300.0,0.00024658,2]
[387140498,1758588763747,-700.0,0.00024658,2]
[387140499,1758588763757,-356.5,0.00024658,2]
[387140500,1758588763766,-543.0,0.00024658,2]
[387140501,1758588763775,-400.0,0.0002467,2]
[387140502,1758588763785,-700.0,0.0002467,2]
[387140503,1758588763794,-318.02025898,0.00024673,2]
[387140504,1758588763803,-165.8491028,0.00024677,2]
[387140505,1758588763812,-168.0,0.00024678,2]
[387140506,1758588763821,-168.0,0.00024697,2]
[387140507,1758588763831,-516.88241041,0.00024708,2]
[387140508,1758588763840,-200.0,0.0002471,7]
[387140509,1758588763850,-150.0,0.00024773,2]
[387140510,1758588763861,-150.0,0.00024775,2]
[387140511,1758588763871,-260.00682734,0.00024777,2]
[387140512,1758588763880,-331.38125053,0.00024778,2]
[387140513,1758588763892,-402.75567372,0.0002478,2]
[387140514,1758588763902,-474.13009691,0.00024782,2]
[387140515,1758588763912,-545.5045201,0.00024783,2]
[387140516,1758588763921,-616.87894329,0.00024785,2]
[387140517,1758588763930,-688.25336648,0.00024787,2]
[387140518,1758588763939,-759.62778967,0.00024788,2]
[387140519,1758588763948,-831.00221287,0.0002479,2]
[387140520,1758588763957,-267.57787126,0.00024799,11]
[387140521,1758588763966,-2000.0,0.000248,2]
[387140522,1758588763976,-627270.247015,0.000248,2]
[387140523,1758588763985,-200.0,0.0002481,7]
[387140524,1758588763994,-1147.07646305,0.0002481,2]
[387140525,1758588764003,-168.0,0.00024848,2]
[387140526,1758588764012,-600.0,0.0002485,2]
[387140527,1758588764021,-202.0,0.00024871,2]
[387140528,1758588764031,-150.0,0.00024874,2]
[387140529,1758588764040,-150.0,0.00024886,2]
[387140530,1758588764050,-150.0,0.00024886,2]